bitfinex/quotes_SOLUSD_20220114
["timestamp","ask_amount","ask_price","bid_price","bid_amount"]
[1642196753639,0.26,147.1,147.03,32.370328]
[1642196753950,26.9332,147.15,147.05,10.1978]
[1642196754140,26.9332,147.15,147.06,30.08384178]
[1642196754540,26.9332,147.15,147.06,30.33384178]
[1642196754541,24.4742,147.15,147.06,30.33384178]
[1642196754742,2.719,147.14,147.06,30.33384178]
[1642196754941,2.719,147.14,147.06,0.25]
[1642196755543,2.719,147.14,147.05,16.4478]
[1642196756440,2.969,147.14,147.05,16.4478]
[1642196756843,0.25,147.14,147.05,19.1668]
[1642196757042,40.672,147.15,147.05,19.1668]
[1642196757241,2.719,147.14,147.05,16.4478]
[1642196757443,2.969,147.14,147.05,16.4478]
[1642196757743,13.1677,147.14,147.05,16.4478]
[1642196757946,13.1677,147.14,147.05,16.1978]
[1642196758143,13.1677,147.14,147.05,10.1978]
[1642196758346,13.1677,147.14,147.04,2.719]
[1642196758544,13.1677,147.14,147.04,2.969]
[1642196758945,19.1677,147.14,147.04,2.969]
[1642196759944,19.4277,147.14,147.04,2.969]
[1642196760548,87.3977,147.14,147.04,2.969]
[1642196761149,19.4277,147.14,147.04,2.969]
[1642196761348,13.1677,147.14,147.04,2.969]
[1642196761748,57.11818101,147.13,146.99,68.66973183]
[1642196761947,57.36818101,147.13,147.0,77.65]
[1642196762347,57.36818101,147.13,147.03,10.1994]
[1642196762547,23.921,147.12,147.03,16.4594]
[1642196762948,24.171,147.12,147.03,16.4594]
[1642196763449,24.171,147.12,147.03,16.7094]
[1642196765653,24.171,147.12,147.03,40.99547633]
[1642196768054,24.431,147.12,147.03,16.7094]
[1642196768452,24.181,147.12,147.03,16.7094]
[1642196769955,24.431,147.12,147.03,16.7094]
[1642196770557,24.431,147.12,147.03,16.4494]
[1642196770758,24.431,147.12,147.03,10.4494]
[1642196770956,2.719,147.11,147.03,10.4494]
[1642196771160,27.15,147.12,147.03,10.4494]
[1642196771358,0.25,147.11,147.03,39.358]
[1642196771559,24.171,147.12,147.03,39.358]
[1642196772259,24.171,147.12,147.03,39.618]
[1642196772686,24.171,147.12,147.03,39.358]
[1642196773990,26.89,147.12,147.03,39.358]
[1642196774995,34.6307,147.12,147.03,39.358]
[1642196775990,34.6307,147.12,147.03,16.4494]
[1642196776393,34.6307,147.12,147.01,37.42650705]
[1642196776591,12.9195,147.11,147.01,53.35650705]
[1642196776993,13.1695,147.11,147.01,43.67650705]
[1642196777191,28.19247688,147.1,147.01,43.67650705]
[1642196777596,38.64337688,147.1,147.01,33.47610705]
[1642196778592,38.90337688,147.1,147.01,33.47610705]
[1642196778792,106.87337688,147.1,147.01,33.47610705]
[1642196779494,38.90337688,147.1,147.01,33.47610705]
[1642196780095,30.91247688,147.1,147.02,27.10658481]
[1642196780294,28.19247688,147.1,147.02,32.99058481]
[1642196780493,28.19247688,147.1,147.02,39.24058481]
[1642196780895,28.19247688,147.1,147.03,10.199]
[1642196781095,28.19247688,147.1,147.03,16.449]
[1642196781496,28.19247688,147.1,147.03,10.449]
[1642196782098,28.45247688,147.1,147.03,10.449]
[1642196782698,28.70247688,147.1,147.03,10.199]
[1642196782898,28.70247688,147.1,147.01,37.42640705]
[1642196783099,28.70247688,147.1,147.01,43.67640705]
[1642196784301,38.90357688,147.1,147.01,43.67640705]
[1642196786105,38.90357688,147.1,147.01,3.53890705]
[1642196786305,2.72,147.09,147.01,3.53890705]
[1642196786505,10.2043,147.06,146.96,99.18132169]
[1642196786704,47.94108101,147.05,146.96,99.18132169]
[1642196787104,54.19108101,147.05,146.96,93.7]
[1642196787505,54.19108101,147.05,146.96,93.95]
[1642196787704,54.19108101,147.05,146.96,93.7]
[1642196787906,54.19108101,147.05,146.95,26.51516792]
[1642196787907,66.09665689,147.05,146.95,26.51516792]
[1642196788105,2.721,147.04,146.95,22.9746]
[1642196788308,3.21077688,147.02,146.95,22.9746]
[1642196788607,3.46077688,147.02,146.92,37.6309008]
[1642196788808,3.46077688,147.02,146.92,43.6309008]
[1642196789206,3.21077688,147.02,146.92,43.6309008]
[1642196789411,3.21077688,147.02,146.94,10.2055]
[1642196789606,3.21077688,147.02,146.95,21.57014129]
[1642196790007,3.21077688,147.02,146.95,21.82014129]
[1642196790210,3.47077688,147.02,146.95,21.82014129]
[1642196790606,3.47077688,147.02,146.95,0.25]
[1642196791011,3.72077688,147.02,146.93,34.95687911]
[1642196791207,3.72077688,147.02,146.93,31.075]
[1642196791442,24.3015,147.01,146.93,31.075]
[1642196791844,24.3015,147.01,146.94,3.88196205]
[1642196792045,24.3015,147.01,146.94,10.13196205]
[1642196792643,24.3015,147.01,146.94,36.2883373]
[1642196793345,24.3015,147.01,146.94,10.2056]
[1642196793744,24.5615,147.01,146.94,10.2056]
[1642196795247,24.5615,147.01,146.94,10.4556]
[1642196795650,31.82140956,147.0,146.94,10.4556]
[1642196796047,31.82140956,147.0,146.94,0.25]
[1642196796249,31.82140956,147.0,146.92,16.2065]
[1642196796250,40.54240956,147.0,146.92,16.2065]
[1642196796448,40.79240956,147.0,146.92,10.2065]
[1642196796650,40.79240956,147.0,146.91,22.9689]
[1642196796651,1.70077588,146.99,146.9,5.48132169]
[1642196796848,2.722,146.98,146.9,5.48132169]
[1642196797050,21.66392358,146.97,146.88,15.69052169]
[1642196797449,27.91392358,146.97,146.88,15.69052169]
[1642196797650,2.722,146.96,146.88,5.48132169]
[1642196797852,27.2392,146.96,146.88,5.48132169]
[1642196798051,27.4892,146.96,146.87,1.169676]
[1642196798452,105.6699,146.96,146.87,1.169676]
[1642196799051,111.6699,146.96,146.87,1.169676]
[1642196799852,111.6699,146.96,146.87,1.419676]
[1642196800056,111.9299,146.96,146.87,1.419676]
[1642196801152,33.7492,146.96,146.87,1.419676]
[1642196801755,27.7492,146.96,146.88,1.97418017]
[1642196801955,27.7492,146.96,146.88,20.46704067]
[1642196802685,25.0272,146.96,146.88,20.46704067]
[1642196802854,24.7772,146.96,146.88,20.46704067]
[1642196803055,24.7772,146.96,146.88,26.46704067]
[1642196803456,24.7772,146.96,146.89,10.2087]
[1642196803857,24.7772,146.96,146.89,10.4587]
[1642196804059,24.5172,146.96,146.89,10.4587]
[1642196805355,27.2392,146.96,146.89,10.4587]
[1642196805557,27.4892,146.96,146.89,10.4587]
[1642196805856,27.4892,146.96,146.9,1.97418017]
[1642196806056,27.4892,146.96,146.9,2.22418017]
[1642196807860,27.7492,146.96,146.9,2.22418017]
[1642196808661,25.0272,146.96,146.9,2.22418017]
[1642196809766,27.7492,146.96,146.9,2.22418017]
[1642196810196,95.7192,146.96,146.9,1.97418017]
[1642196810567,95.7192,146.96,146.88,1.97418017]
[1642196810966,105.9298,146.96,146.88,1.97418017]
[1642196811570,105.9298,146.96,146.88,2.22418017]
[1642196811868,37.9598,146.96,146.88,2.22418017]
[1642196812068,35.2378,146.96,146.88,2.22418017]
[1642196812269,25.0272,146.96,146.88,2.22418017]
[1642196812469,24.7772,146.96,146.88,8.22418017]
[1642196812672,24.7772,146.96,146.88,2.22418017]
[1642196812870,24.7772,146.96,146.88,8.22418017]
[1642196813470,24.7772,146.96,146.88,18.43368017]
[1642196817576,24.7772,146.96,146.88,28.11368017]
[1642196818679,24.7772,146.96,146.88,28.15368017]
[1642196820581,24.7772,146.96,146.88,27.90368017]
[1642196823491,24.5172,146.96,146.88,38.79168017]
[1642196825094,24.7772,146.96,146.88,38.79168017]
[1642196826709,27.4992,146.96,146.88,38.79168017]
[1642196827208,24.7772,146.96,146.88,38.79168017]
[1642196829511,27.4992,146.96,146.88,38.79168017]
[1642196829715,24.7772,146.96,146.88,38.28168017]
[1642196829913,27.4992,146.96,146.88,38.28168017]
[1642196830313,24.5172,146.96,146.88,38.28168017]
[1642196830515,24.5172,146.96,146.88,38.54168017]
[1642196831411,24.5172,146.96,146.88,38.79168017]
[1642196832012,24.7772,146.96,146.88,38.79168017]
[1642196837114,2.722,146.95,146.88,2.26418017]
[1642196837517,8.972,146.95,146.88,2.26418017]
[1642196837815,23.59478933,146.94,146.88,2.26418017]
[1642196838015,2.722,146.93,146.88,2.26418017]
[1642196838219,23.8621,146.93,146.88,2.26418017]
[1642196839518,23.8621,146.93,146.88,2.01418017]
[1642196839721,23.8621,146.93,146.88,3.41418017]
[1642196839919,24.1221,146.93,146.88,3.66418017]
[1642196840120,24.1221,146.93,146.88,3.41418017]
[1642196840921,24.1221,146.93,146.88,3.66418017]
[1642196842021,24.1221,146.93,146.88,3.41418017]
[1642196842422,24.1221,146.93,146.88,5.35620006]
[1642196843522,24.1221,146.93,146.88,5.60620006]
[1642196843725,26.8441,146.93,146.88,5.60620006]
[1642196844126,26.8441,146.93,146.88,5.35620006]
[1642196844328,26.8441,146.93,146.88,5.60620006]
[1642196844527,23.8621,146.93,146.88,5.60620006]
[1642196847630,23.8621,146.93,146.88,15.81600006]
[1642196847930,24.1221,146.93,146.88,15.81600006]
[1642196848830,24.1221,146.93,146.88,5.60620006]
[1642196854672,24.4142,146.95,146.9,12.43238017]
[1642196855172,24.4142,146.95,146.9,14.37440006]
[1642196855870,24.6742,146.95,146.9,14.37440006]
[1642196856071,24.6742,146.95,146.9,12.43238017]
[1642196862283,24.6742,146.95,146.9,12.18238017]
[1642196863583,24.6742,146.95,146.9,12.43238017]
[1642196865289,24.4142,146.95,146.9,12.43238017]
[1642196865490,24.4142,146.95,146.9,18.69238017]
[1642196869092,24.4142,146.95,146.9,20.63440006]
[1642196869896,24.4142,146.95,146.91,1.94201989]
[1642196870094,24.4142,146.95,146.91,8.19201989]
[1642196870318,24.4142,146.95,146.92,10.2068]
[1642196870521,24.4142,146.95,146.93,0.50364234]
[1642196870921,27.44639997,146.95,146.93,0.50364234]
[1642196872718,27.44639997,146.95,146.92,12.43098017]
[1642196873521,2.52855762,146.94,146.92,18.43098017]
[1642196873720,2.52855762,146.94,146.92,12.43098017]
[1642196873919,2.52855762,146.94,146.92,18.43098017]
[1642196874121,5.56075759,146.94,146.92,12.93462251]
[1642196874523,5.56075759,146.94,146.92,18.93462251]
[1642196874722,5.16075759,146.94,146.92,28.61462251]
[1642196874923,5.16075759,146.94,146.92,30.57539839]
[1642196875125,24.7954,147.0,146.92,30.57539839]
[1642196875523,33.5164,147.0,146.92,30.57539839]
[1642196875724,22.6892484,146.99,146.92,28.87462251]
[1642196875924,22.6892484,146.99,146.92,28.61462251]
[1642196876125,22.9392484,146.99,146.92,22.61462251]
[1642196876324,2.721,146.98,146.92,22.61462251]
[1642196876525,27.1354,146.98,146.93,1.94201989]
[1642196876923,27.1354,146.98,146.93,2.19201989]
[1642196877327,27.1354,146.98,146.93,0.25]
[1642196877524,27.1354,146.98,146.94,1.97418017]
[1642196878325,27.3954,146.98,146.94,1.97418017]
[1642196880827,27.3954,146.98,146.91,1.97418017]
[1642196881026,27.3954,146.98,146.91,2.22418017]
[1642196881226,27.3954,146.98,146.91,4.16620006]
[1642196882128,27.3954,146.98,146.91,2.22418017]
[1642196882728,24.6744,146.98,146.91,2.22418017]
[1642196884533,24.6744,146.98,146.91,4.16620006]
[1642196885742,24.6744,146.98,146.91,14.37380006]
[1642196885938,24.4244,146.98,146.91,14.37380006]
[1642196886138,24.4244,146.98,146.91,16.07457594]
[1642196887145,24.4244,146.98,146.92,1.94201989]
[1642196887345,24.4244,146.98,146.92,12.14901989]
[1642196887545,24.4244,146.98,146.92,12.39901989]
[1642196887750,24.4244,146.98,146.93,1.97418017]
[1642196887946,24.4244,146.98,146.93,2.22418017]
[1642196889272,24.4244,146.98,146.93,1.97418017]
[1642196889572,24.4244,146.98,146.93,2.22418017]
[1642196889773,24.1644,146.98,146.93,2.22418017]
[1642196890175,24.1644,146.98,146.93,1.97418017]
[1642196890375,24.1644,146.98,146.93,2.22418017]
[1642196891475,23.9644,146.98,146.93,2.22418017]
[1642196893478,24.2244,146.98,146.93,2.22418017]
[1642196894877,24.2244,146.98,146.93,1.97418017]
[1642196895178,24.2244,146.98,146.93,2.22418017]
[1642196896080,26.9454,146.98,146.93,2.22418017]
[1642196896278,24.2244,146.98,146.93,2.22418017]
[1642196896478,2.721,146.97,146.93,1.97418017]
[1642196896780,30.37748275,146.96,146.93,2.22418017]
[1642196897078,30.37748275,146.96,146.94,0.90364234]
[1642196897481,30.37748275,146.96,146.95,1.97418017]
[1642196898980,30.37748275,146.96,146.95,2.22418017]
[1642196900283,30.37748275,146.96,146.95,1.97418017]
[1642196900586,35.79824034,146.96,146.95,1.97418017]
[1642196900883,35.79824034,146.96,146.93,1.97418017]
[1642196901085,35.79824034,146.96,146.93,2.22418017]
[1642196901486,35.79824034,146.96,146.93,1.97418017]
[1642196901885,35.79824034,146.96,146.93,2.22418017]
[1642196902485,35.79824034,146.96,146.93,1.97418017]
[1642196903387,30.63748275,146.96,146.94,0.90364234]
[1642196904187,30.63748275,146.96,146.95,1.97418017]
[1642196904585,32.76604037,146.96,146.95,1.97418017]
[1642196904787,35.79824034,146.96,146.95,1.97418017]
[1642196905589,33.66968272,146.96,146.95,2.87782251]
[1642196905786,33.66968272,146.96,146.95,1.97418017]
[1642196905987,5.42075759,146.96,146.95,1.97418017]
[1642196906190,5.42075759,146.96,146.95,2.22418017]
[1642196906386,3.03219997,146.96,146.95,2.22418017]
[1642196906587,23.9644,146.98,146.95,2.22418017]
[1642196906889,23.9644,146.98,146.95,1.97418017]
[1642196907088,3.03219997,146.97,146.95,1.97418017]
[1642196907288,2.12855762,146.96,146.92,1.97418017]
[1642196907488,2.12855762,146.96,146.92,2.22418017]
[1642196907691,3.03219997,146.97,146.92,2.22418017]
[1642196907892,3.03219997,146.97,146.92,4.16620006]
[1642196908088,23.9644,146.98,146.92,4.16620006]
[1642196908491,24.2144,146.98,146.92,14.37310006]
[1642196908792,24.2144,146.98,146.92,12.43108017]
[1642196909791,24.2144,146.98,146.92,18.43108017]
[1642196909991,24.4744,146.98,146.92,18.43108017]
[1642196911795,24.4744,146.98,146.93,1.169676]
[1642196911991,24.4744,146.98,146.93,1.419676]
[1642196912193,24.4744,146.98,146.94,1.97418017]
[1642196917799,29.56157815,146.97,146.94,1.97418017]
[1642196918399,29.56157815,146.97,146.95,0.90364234]
[1642196918602,24.2144,146.98,146.95,0.90364234]
[1642196919006,24.2144,146.98,146.96,1.97418017]
[1642196919201,29.37515759,146.98,146.96,1.97418017]
[1642196920103,29.63515759,146.98,146.96,1.97418017]
[1642196922004,29.63515759,146.98,146.93,11.625976]
[1642196922203,29.63515759,146.98,146.94,1.97418017]
[1642196922505,29.63515759,146.98,146.94,7.97418017]
[1642196924434,1.7697828,147.0,146.95,1.70077588]
[1642196924628,1.7697828,147.0,146.95,19.80977588]
[1642196924828,1.7697828,147.0,146.95,26.31977588]
[1642196925033,3.60971146,147.03,146.96,82.70077588]
[1642196925231,3.60971146,147.03,146.97,9.68]
[1642196925430,1.79641146,147.04,146.97,11.38077588]
[1642196925630,1.79641146,147.04,147.0,10.1996]
[1642196925830,1.79641146,147.04,147.0,17.6046]
[1642196926029,1.79641146,147.04,147.0,17.8546]
[1642196926230,1.79641146,147.04,147.0,33.2846]
[1642196926430,1.79641146,147.04,147.0,33.5346]
[1642196927033,23.9721,147.08,147.0,33.5346]
[1642196927832,2.72,147.1,147.0,35.49537588]
[1642196928033,25.5741,147.1,147.0,35.49537588]
[1642196928233,25.5741,147.1,147.01,1.97418017]
[1642196928434,25.5741,147.1,147.03,10.1991]
[1642196929036,25.8341,147.1,147.03,10.4491]
[1642196929737,25.5841,147.1,147.03,10.4491]
[1642196930844,22.8641,147.1,147.03,10.4491]
[1642196932243,22.8641,147.1,147.04,1.97418017]
[1642196932442,2.719,147.11,147.04,22.10228017]
[1642196932641,131.1659,147.23,147.04,22.10228017]
[1642196932642,2.719,147.14,147.04,22.10228017]
[1642196932842,24.3965,147.15,147.08,1.169676]
[1642196933041,5.79620548,147.16,147.09,9.68]
[1642196933242,5.79620548,147.16,147.1,67.97]
[1642196933442,5.79620548,147.19,147.11,9.68]
[1642196933642,5.79620548,147.19,147.11,17.846]
[1642196933845,5.79620548,147.19,147.11,24.356]
[1642196934752,2.718,147.22,147.11,92.326]
[1642196934946,2.718,147.22,147.15,10.1904]
[1642196935146,26.1502,147.23,147.15,17.5794]
[1642196935345,23.4322,147.23,147.15,24.0894]
[1642196935745,23.4322,147.23,147.15,33.7694]
[1642196935949,2.717,147.22,147.15,33.7694]
[1642196936346,2.717,147.22,147.15,101.7394]
[1642196936546,2.717,147.22,147.15,33.7694]
[1642196937647,24.1254,147.25,147.15,33.7694]
[1642196937849,26.8424,147.25,147.15,33.7694]
[1642196938047,26.8424,147.25,147.16,1.97418017]
[1642196938247,26.8424,147.25,147.17,9.68]
[1642196938448,26.8424,147.25,147.2,10.1873]
[1642196938747,5.79620548,147.26,147.2,16.2943]
[1642196938949,2.716,147.27,147.2,16.8043]
[1642196939948,2.976,147.27,147.2,16.8043]
[1642196940150,2.976,147.27,147.2,10.6973]
[1642196940950,2.976,147.27,147.21,1.97418017]
[1642196941151,3.877206,147.26,147.21,12.16088017]
[1642196941353,26.82749851,147.25,147.21,1.97418017]
[1642196941552,2.716,147.24,147.21,1.97418017]
[1642196941852,2.716,147.24,147.22,0.90364234]
[1642196942052,2.966,147.24,147.22,0.90364234]
[1642196942754,47.16075759,147.23,147.21,1.97418017]
[1642196942954,2.966,147.24,147.22,0.90364234]
[1642196943756,2.966,147.24,147.23,1.97418017]
[1642196943955,5.35455762,147.24,147.23,1.97418017]
[1642196944158,34.10455762,147.24,147.23,1.97418017]
[1642196944356,34.35455762,147.24,147.23,1.97418017]
[1642196945161,34.10455762,147.24,147.23,1.97418017]
[1642196945859,31.38855762,147.24,147.23,1.97418017]
[1642196946262,33.25108159,147.24,147.23,1.97418017]
[1642196946862,33.25108159,147.24,147.19,1.97418017]
[1642196947060,33.25108159,147.24,147.19,2.22418017]
[1642196949284,33.25108159,147.24,147.19,12.41248017]
[1642196950385,4.25108159,147.24,147.19,12.41248017]
[1642196952087,0.26,147.24,147.19,12.41248017]
[1642196952286,22.8517,147.26,147.19,12.41248017]
[1642196954990,22.8517,147.26,147.19,18.41248017]
[1642196955193,22.8517,147.26,147.19,12.41248017]
[1642196956093,23.1117,147.26,147.19,12.41248017]
[1642196960502,29.1117,147.26,147.19,12.41248017]
[1642196963704,2.716,147.25,147.19,12.41248017]
[1642196964103,8.716,147.25,147.19,12.41248017]
[1642196964303,8.716,147.25,147.19,12.16248017]
[1642196964504,8.966,147.25,147.19,12.16248017]
[1642196965806,8.966,147.25,147.19,1.97418017]
[1642196966206,8.966,147.25,147.18,1.97418017]
[1642196966608,24.899,147.24,147.18,1.97418017]
[1642196966807,2.717,147.23,147.18,1.97418017]
[1642196967107,26.0150104,147.22,147.18,1.97418017]
[1642196967308,2.717,147.21,147.18,1.97418017]
[1642196967608,3.99108159,147.2,147.18,1.97418017]
[1642196967808,30.717,147.19,147.18,1.97418017]
[1642196968008,28.25,147.19,147.18,1.97418017]
[1642196969308,28.25,147.19,147.13,1.97418017]
[1642196970309,28.25,147.19,147.14,10.1916]
[1642196970509,28.25,147.19,147.14,10.4416]
[1642196971410,28.51,147.19,147.14,10.4416]
[1642196972009,26.9404,147.21,147.14,10.4416]
[1642196972209,24.2234,147.21,147.15,1.70077588]
[1642196972412,26.4335,147.24,147.18,10.1887]
[1642196972708,23.7165,147.24,147.18,16.2777]
[1642196973309,23.7165,147.24,147.18,16.5277]
[1642196973612,24.2265,147.24,147.18,16.5277]
[1642196974009,24.2265,147.24,147.18,16.2777]
[1642196974211,24.2265,147.24,147.18,10.1887]
[1642196974611,24.2265,147.24,147.18,10.4387]
[1642196974812,24.2265,147.24,147.18,0.25]
[1642196975115,2.717,147.23,147.18,0.25]
[1642196975542,25.076,147.23,147.19,1.97418017]
[1642196975942,25.336,147.23,147.19,1.97418017]
[1642196978245,25.076,147.23,147.19,1.97418017]
[1642196978746,25.076,147.23,147.18,1.97418017]
[1642196979000,25.076,147.23,147.18,2.22418017]
[1642196979447,25.336,147.23,147.18,2.22418017]
[1642196983048,25.336,147.23,147.18,1.97418017]
[1642196984052,2.717,147.22,147.18,1.97418017]
[1642196984250,2.717,147.22,147.16,1.97418017]
[1642196984451,2.967,147.22,147.16,1.97418017]
[1642196987853,2.967,147.22,147.15,1.97418017]
[1642196989954,3.227,147.22,147.15,1.97418017]
[1642196990357,9.227,147.22,147.15,1.97418017]
[1642196990755,9.227,147.22,147.15,12.16528017]
[1642196991159,3.227,147.22,147.15,12.16528017]
[1642196991357,9.227,147.22,147.15,12.16528017]
[1642196991558,3.227,147.22,147.15,12.16528017]
[1642196991761,3.227,147.22,147.15,12.41528017]
[1642196998196,9.227,147.22,147.15,12.41528017]
[1642196998395,3.227,147.22,147.15,12.41528017]
[1642196998596,9.227,147.22,147.15,12.41528017]
[1642196998897,3.227,147.22,147.15,12.41528017]
[1642197003908,9.227,147.22,147.15,12.41528017]
[1642197004105,3.227,147.22,147.15,12.41528017]
[1642197004304,9.227,147.22,147.15,12.41528017]
[1642197004708,8.967,147.22,147.15,12.41528017]
[1642197005106,2.967,147.22,147.15,12.41528017]
[1642197005810,2.967,147.22,147.15,2.22418017]
[1642197005811,8.967,147.22,147.15,2.22418017]
[1642197006210,2.967,147.22,147.15,2.22418017]
[1642197006411,24.9225,147.21,147.15,2.22418017]
[1642197006810,25.1725,147.21,147.15,2.22418017]
[1642197007010,24.9225,147.21,147.15,2.22418017]
[1642197007411,30.9225,147.21,147.15,1.97418017]
[1642197007711,30.9225,147.21,147.12,34.1714]
[1642197007911,30.9225,147.21,147.14,0.51]
[1642197008411,24.9225,147.21,147.14,0.51]
[1642197008610,25.1725,147.21,147.14,0.25]
[1642197008810,24.9225,147.21,147.14,0.25]
[1642197009012,25.4325,147.21,147.13,2.48418017]
[1642197009211,25.4325,147.21,147.13,12.16418017]
[1642197009412,25.4325,147.21,147.15,10.191]
[1642197009815,25.4325,147.21,147.15,10.441]
[1642197010215,0.26,147.21,147.15,10.441]
[1642197010616,24.5867,147.23,147.15,10.441]
[1642197010815,24.8467,147.23,147.15,10.441]
[1642197011016,24.8467,147.23,147.16,1.97418017]
[1642197011218,24.8467,147.23,147.16,12.16448017]
[1642197011417,25.0967,147.23,147.16,12.16448017]
[1642197011616,25.0967,147.23,147.16,1.97418017]
[1642197012216,2.217,147.22,147.16,1.97418017]
[1642197012617,2.467,147.22,147.16,1.97418017]
[1642197013518,2.467,147.22,147.16,2.22418017]
[1642197014318,2.467,147.22,147.16,1.97418017]
[1642197016024,2.727,147.22,147.15,1.97418017]
[1642197016224,8.727,147.22,147.15,1.97418017]
[1642197016424,24.3291,147.21,147.15,1.97418017]
[1642197016623,2.717,147.2,147.15,1.97418017]
[1642197016824,28.83417364,147.19,147.15,1.97418017]
[1642197017023,29.08417364,147.19,147.15,1.97418017]
[1642197017827,35.08417364,147.19,147.15,1.97418017]
[1642197018025,29.08417364,147.19,147.15,1.97418017]
[1642197019031,29.08417364,147.19,147.13,1.97418017]
[1642197019426,29.08417364,147.19,147.13,2.22418017]
[1642197019627,35.08417364,147.19,147.13,2.22418017]
[1642197020453,35.34417364,147.19,147.13,2.22418017]
[1642197021552,29.34417364,147.19,147.13,2.22418017]
[1642197024056,35.34417364,147.19,147.13,2.22418017]
[1642197024258,29.34417364,147.19,147.13,2.22418017]
[1642197025057,35.34417364,147.19,147.13,2.22418017]
[1642197026261,45.53867364,147.19,147.13,2.22418017]
[1642197028562,45.53867364,147.19,147.13,1.97418017]
[1642197028762,36.52,147.18,147.13,1.97418017]
[1642197028962,42.77,147.18,147.13,1.97418017]
[1642197029562,42.77,147.18,147.12,1.97418017]
[1642197032064,43.03,147.18,147.12,1.97418017]
[1642197032263,43.03,147.18,147.08,2.718]
[1642197032264,43.03,147.18,147.1,1.97418017]
[1642197032862,43.03,147.18,147.1,2.22418017]
[1642197034166,32.3248,147.18,147.1,12.41878017]
[1642197034368,26.3248,147.18,147.1,18.41878017]
[1642197034566,23.6068,147.18,147.1,20.37955605]
[1642197034966,23.6068,147.18,147.1,20.11955605]
[1642197035168,23.6068,147.18,147.1,12.41878017]
[1642197035570,23.8568,147.18,147.1,12.41878017]
[1642197035768,23.8568,147.18,147.11,2.718]
[1642197035969,23.8568,147.18,147.12,10.1929]
[1642197036169,23.8568,147.18,147.12,12.16708017]
[1642197036370,23.8568,147.18,147.12,2.22418017]
[1642197037372,23.8568,147.18,147.12,1.97418017]
[1642197037571,23.8568,147.18,147.12,2.22418017]
[1642197037971,24.1168,147.18,147.12,2.22418017]
[1642197038572,23.8568,147.18,147.12,2.22418017]
[1642197040072,24.1168,147.18,147.12,2.22418017]
[1642197040272,24.1168,147.18,147.12,1.97418017]
[1642197041574,2.718,147.17,147.12,1.97418017]
[1642197041978,2.968,147.17,147.1,1.97418017]
[1642197042276,8.968,147.17,147.1,1.97418017]
[1642197042677,19.1641,147.17,147.1,1.97418017]
[1642197044977,19.1641,147.17,147.09,1.97418017]
[1642197045678,1.93809455,147.16,147.09,1.97418017]
[1642197045878,2.718,147.15,147.09,1.97418017]
[1642197046082,8.968,147.15,147.09,1.97418017]
[1642197049007,9.228,147.15,147.09,1.97418017]
[1642197051113,8.718,147.15,147.09,12.41918017]
[1642197051310,6.0,147.15,147.09,21.39718017]
[1642197051510,7.93809455,147.17,147.09,18.67918017]
[1642197051911,6.25,147.17,147.09,18.67918017]
[1642197052312,0.25,147.17,147.09,18.67918017]
[1642197053114,26.5748,147.18,147.09,18.67918017]
[1642197055715,26.3248,147.18,147.1,2.718]
[1642197055917,23.8668,147.18,147.1,12.9121]
[1642197056115,23.8668,147.18,147.1,19.1621]
[1642197056319,23.8668,147.18,147.11,1.97418017]
[1642197056515,23.8668,147.18,147.11,7.97418017]
[1642197057716,26.5848,147.18,147.11,1.97418017]
[1642197057918,26.8348,147.18,147.11,1.97418017]
[1642197058717,37.0301,147.18,147.11,1.97418017]
[1642197058921,43.0301,147.18,147.11,1.97418017]
[1642197059319,1.93809455,147.17,147.11,1.97418017]
[1642197059517,2.18809455,147.17,147.11,1.97418017]
[1642197060518,2.718,147.16,147.11,1.97418017]
[1642197060917,2.968,147.16,147.09,1.97418017]
[1642197062118,4.90609455,147.16,147.09,1.97418017]
[1642197062318,2.18809455,147.16,147.09,7.97418017]
[1642197063218,2.44809455,147.16,147.09,8.22418017]
[1642197065420,2.44809455,147.16,147.09,18.41938017]
[1642197065920,2.19809455,147.16,147.09,18.41938017]
[1642197066123,1.93809455,147.16,147.09,28.09938017]